bitfinex-derivatives/quotes_SOLF0:USTF0_20250413
["timestamp","ask_amount","ask_price","bid_price","bid_amount"]
[1744580476430,7.9192,126.31,126.27,7.9215]
[1744580476632,7.9192,126.31,126.28,0.05828664]
[1744580477031,7.9188,126.32,126.28,7.97928664]
[1744580477340,7.9188,126.32,126.28,7.921]
[1744580477547,7.9188,126.32,126.29,0.05146379]
[1744580478143,53.1317,126.36,126.29,0.05146379]
[1744580478937,61.0479,126.36,126.33,7.9179]
[1744580479139,58.9562,126.36,126.33,7.9179]
[1744580479344,7.9175,126.34,126.33,0.05427811]
[1744580479542,51.04,126.36,126.26,2.11]
[1744580479839,51.04,126.36,126.27,7.9212]
[1744580480039,7.92,126.3,126.24,51.6915]
[1744580480243,38.78731741,126.35,126.24,51.6915]
[1744580480542,7.9218,126.27,126.19,88.28731741]
[1744580480737,49.5,126.3,126.19,92.90801741]
[1744580480938,49.5,126.3,126.23,7.9241]
[1744580481237,49.5,126.3,126.19,92.90801741]
[1744580481238,49.5,126.3,126.19,2.3028]
[1744580481432,38.78731741,126.29,126.17,49.5]
[1744580481637,38.78731741,126.26,126.15,2.3179]
[1744580481838,49.5,126.25,126.11,38.78731741]
[1744580482034,7.98396796,126.19,126.17,0.05716265]
[1744580482338,49.5,126.25,126.11,38.78731741]
[1744580482533,49.5,126.25,126.18,7.9274]
[1744580482739,627.58,126.32,126.18,49.5]
[1744580482740,49.5,126.3,126.18,49.5]
[1744580482941,49.5,126.3,126.2,38.78731741]
[1744580483138,7.9205,126.29,126.25,7.9228]
[1744580483536,38.78731741,126.29,126.11,49.5]
[1744580483835,0.05293178,126.28,126.15,9.89952377]
[1744580484038,49.5,126.3,126.17,38.78731741]
[1744580484239,7.9217,126.27,126.17,88.28731741]
[1744580484544,7.9217,126.27,126.23,7.9241]
[1744580485036,0.05112997,126.26,126.24,0.06102267]
[1744580485237,0.05112997,126.26,126.25,7.923]
[1744580485444,2.0381,126.34,126.22,49.5]
[1744580485644,0.0568767,126.27,126.24,0.05060524]
[1744580485836,0.0568767,126.27,126.23,6.4634]
[1744580486037,0.05448364,126.27,126.24,0.05563193]
[1744580486345,0.05448364,126.27,126.26,7.9223]
[1744580486544,0.05448364,126.27,126.24,0.05563193]
[1744580486739,7.9247,126.23,126.19,7.9265]
[1744580486947,88.28731741,126.29,126.19,7.9265]
[1744580487245,7.9263,126.2,126.18,2.141]
[1744580487546,49.5,126.24,126.16,2.1499]
[1744580487748,49.5,126.23,126.16,2.1499]
[1744580487942,0.06003928,126.21,126.19,0.05552701]
[1744580489042,7.98583928,126.21,126.19,0.05552701]
[1744580489247,0.06003928,126.21,126.19,0.05552701]
[1744580490246,7.9261,126.2,126.19,0.05552701]
[1744580490447,0.06003928,126.21,126.19,0.05552701]
[1744580490644,0.06003928,126.21,126.2,7.9261]
[1744580491142,677.14,126.3,126.19,0.05552701]
[1744580491348,677.14,126.3,126.2,38.78731741]
[1744580491543,49.5,126.3,126.21,2.2487]
[1744580491750,49.5,126.3,126.27,7.9213]
[1744580491950,49.5,126.34,126.21,2.2487]
[1744580492145,38.78731741,126.33,126.21,2.2487]
[1744580492448,0.05490308,126.29,126.26,0.05618304]
[1744580492942,7.9217,126.27,126.26,0.05618304]
[1744580494844,7.9239,126.24,126.21,2.2487]
[1744580495049,49.5,126.28,126.21,2.2487]
[1744580495251,49.5,126.28,126.18,4.2726]
[1744580495252,38.78731741,126.27,126.18,2.1281]
[1744580495551,38.78731741,126.27,126.13,43.29451741]
[1744580495750,38.78731741,126.24,126.13,6.7013]
[1744580495946,7.9278,126.18,126.13,6.7013]
[1744580496148,7.9278,126.18,126.17,0.06003399]
[1744580496451,7.9278,126.18,126.16,0.06074927]
[1744580496953,7.98603397,126.19,126.16,0.06074927]
[1744580497248,0.05903397,126.19,126.16,0.06074927]
[1744580497447,0.05903397,126.19,126.18,7.9274]
[1744580497643,7.9244,126.23,126.16,0.06074927]
[1744580497848,7.9244,126.23,126.16,38.84806668]
[1744580498049,7.9239,126.24,126.16,38.84806668]
[1744580498245,49.5,126.27,126.16,38.78731741]
[1744580498643,7.9227,126.26,126.16,38.78731741]
[1744580498847,1.9838,126.28,126.17,3.44569073]
[1744580499043,0.05646565,126.23,126.2,0.05666576]
[1744580499354,0.05646565,126.23,126.16,38.78731741]
[1744580499554,0.05646565,126.23,126.2,0.0502849]
[1744580501555,0.05646565,126.23,126.2,7.9760849]
[1744580502755,7.98086565,126.23,126.2,7.9760849]
[1744580503349,0.05646565,126.23,126.2,0.0502849]
[1744580505651,7.9255,126.21,126.2,0.0502849]
[1744580515465,0.05646565,126.23,126.2,0.0502849]
[1744580515957,7.98096565,126.23,126.2,7.9760849]
[1744580520470,0.05646565,126.23,126.21,7.9253]
[1744580521369,7.98076565,126.23,126.21,7.9253]
[1744580522577,7.98076565,126.23,126.2,7.9760849]
[1744580522974,7.98076565,126.23,126.21,7.9254]
[1744580523171,7.98076565,126.23,126.2,0.0502849]
[1744580523469,7.9249,126.22,126.2,0.0502849]
[1744580523974,7.9253,126.22,126.2,0.0502849]
[1744580524275,0.05646565,126.23,126.2,0.0502849]
[1744580531079,7.98096565,126.23,126.2,7.9763849]
[1744580532176,0.05646565,126.23,126.2,7.9763849]
[1744580532787,7.98076565,126.23,126.2,7.9763849]
[1744580532990,7.98076565,126.23,126.21,3.49749029]
[1744580533178,0.05646565,126.23,126.2,0.0502849]
[1744580533489,0.05646565,126.23,126.21,3.49757263]
[1744580533682,0.05646565,126.23,126.22,6.84987263]
[1744580533888,0.05646565,126.23,126.22,3.49757263]
[1744580534083,0.05646565,126.23,126.2,0.0502849]
[1744580534279,44.9,126.22,126.2,0.0502849]
[1744580534682,44.9,126.22,126.13,14.76170051]
[1744580534886,44.9,126.22,126.14,3.40621793]
[1744580535088,14.76170051,126.21,126.15,3.40621793]
[1744580535388,14.76170051,126.21,126.16,3.40621793]
[1744580535590,7.9271,126.19,126.12,10.1176]
[1744580535788,7.9271,126.19,126.14,0.05945644]
[1744580535993,0.05191399,126.17,126.16,7.9285]
[1744580536181,44.9,126.22,126.16,3.40631324]
[1744580536382,0.0542263,126.18,126.17,3.40631324]
[1744580536586,44.9,126.22,126.17,11.33421324]
[1744580536778,0.05430972,126.19,126.18,3.40631324]
[1744580537681,7.98100972,126.19,126.17,0.0586003]
[1744580537878,0.05430972,126.19,126.17,0.0586003]
[1744580538894,52.8274,126.18,126.17,0.0586003]
[1744580539189,44.9,126.18,126.12,10.1176]
[1744580539589,44.9,126.18,126.12,18.0484]
[1744580539791,44.9,126.18,126.13,3.41120213]
[1744580540095,7.9291,126.16,126.14,0.05189581]
[1744580540591,0.06076495,126.17,126.14,0.05189581]
[1744580540787,7.9292,126.15,126.14,0.05189581]
[1744580541788,7.9292,126.15,126.14,3.46378568]
[1744580541987,7.9292,126.15,126.14,3.46382316]
[1744580543291,7.9292,126.15,126.14,0.05189581]
[1744580545792,0.06076495,126.17,126.14,0.05189581]
[1744580546285,0.06076495,126.17,126.16,7.9286]
[1744580546487,672.74,126.22,126.15,6.6293]
[1744580546688,44.92,126.22,126.16,3.40521472]
[1744580546895,7.9231,126.25,126.17,27.03698802]
[1744580547193,44.92,126.26,126.18,3.40521472]
[1744580547385,44.92,126.26,126.23,7.9238]
[1744580547585,0.05194961,126.23,126.21,0.05116515]
[1744580547788,0.05927854,126.23,126.22,3.40433092]
[1744580547991,44.92,126.26,126.23,7.9238]
[1744580548796,52.8428,126.26,126.22,14.554]
[1744580548995,52.90060965,126.26,126.22,14.554]
[1744580549194,52.90060965,126.26,126.23,3.40258193]
[1744580549495,52.90060965,126.26,126.22,14.554]
[1744580549796,52.90060965,126.26,126.23,11.32660531]
[1744580549991,7.923,126.25,126.22,6.6293]
[1744580550191,7.923,126.25,126.23,3.40250479]
[1744580550393,7.923,126.25,126.22,6.6293]
[1744580551892,44.97780965,126.26,126.21,0.05116515]
[1744580552097,68.60958295,126.26,126.21,0.05116515]
[1744580552297,3.0705,126.25,126.14,6.8866]
[1744580552497,3.0705,126.25,126.15,3.40173633]
[1744580552697,3.0705,126.25,126.16,3.40173633]
[1744580552893,7.9284,126.17,126.14,6.8866]
[1744580553093,7.9284,126.17,126.15,3.31036512]
[1744580553294,7.9284,126.17,126.14,6.8866]
[1744580553496,7.98585348,126.17,126.15,0.05774625]
[1744580555094,7.9286,126.16,126.15,0.05774625]
[1744580556496,7.98575348,126.17,126.15,0.05774625]
[1744580556700,0.05745348,126.17,126.15,0.05774625]
[1744580556895,3.0705,126.25,126.15,0.05774625]
[1744580557094,7.9251,126.22,126.18,7.9273]
[1744580557290,7.9251,126.22,126.17,3.2127]
[1744580557603,7.9245,126.23,126.19,7.9267]
[1744580557799,43.44,126.24,126.17,3.2127]
[1744580558094,0.05199045,126.22,126.2,0.05231079]
[1744580558501,0.05199045,126.22,126.14,3.4471]
[1744580558700,7.9284,126.17,126.15,3.30848513]
[1744580558999,43.44,126.2,126.14,3.4471]
[1744580559397,7.9276,126.18,126.14,11.3769]
[1744580559595,7.98554691,126.18,126.16,0.05818955]
[1744580560298,0.05794691,126.18,126.16,0.05818955]
[1744580560900,7.9256,126.21,126.16,0.05818955]
[1744580561093,43.44,126.23,126.18,7.9273]
[1744580561299,7.9254,126.22,126.18,7.9273]
[1744580562003,0.0547763,126.21,126.19,0.06042233]
[1744580562502,0.0547763,126.21,126.19,7.98712233]
[1744580562702,0.0547763,126.21,126.19,0.06042233]
[1744580563603,7.9802763,126.21,126.19,0.06042233]
[1744580566401,7.9261,126.2,126.19,2.233e-05]
[1744580572009,7.92,126.2,126.11,2.8921]
[1744580572201,43.44,126.19,126.11,2.8921]
[1744580572608,7.9308,126.13,126.11,2.8921]
[1744580572810,43.44,126.19,126.11,2.8921]
[1744580573006,7.9296,126.15,126.11,2.8921]
[1744580573206,7.9296,126.15,126.14,0.06057692]
[1744580585017,7.9296,126.15,126.0,37.32951613]
[1744580585018,23.78,126.11,126.0,37.32951613]
[1744580585221,14.78205049,126.03,126.0,37.32951613]
[1744580585419,14.78205049,126.03,125.97,186.64758067]
[1744580585420,669.98,126.02,125.97,186.64758067]
[1744580585615,14.78205049,126.0,125.97,186.64758067]
[1744580585916,7.9393,125.99,125.98,0.05791088]
[1744580586417,14.78205049,125.95,125.93,307.97635222]
[1744580586618,64.58385049,125.95,125.93,307.97635222]
[1744580587115,7.9425,125.94,125.93,225.85081496]
[1744580587320,628.12,125.94,125.93,0.05801157]
[1744580587622,628.12,125.94,125.9,584.93094758]
[1744580587623,7.9437,125.92,125.9,584.93094758]
[1744580587814,31.69755118,125.92,125.91,352.79336135]
[1744580588015,39.63755118,125.92,125.91,155.04438846]
[1744580588319,31.69755118,125.92,125.91,155.04438846]
[1744580588520,31.69755118,125.92,125.91,147.89152634]
[1744580588721,7.9444,125.91,125.9,0.05635107]
[1744580589019,65.63385118,125.92,125.81,2.8138]
[1744580589616,87.69564797,125.91,125.81,2.8138]
[1744580589812,7.947,125.87,125.81,2.8138]
[1744580590017,41.88,125.86,125.85,0.05433027]
[1744580590525,129.57564797,125.86,125.78,7.952]
[1744580591222,129.57564797,125.86,125.75,414.82741237]
[1744580591223,129.57564797,125.86,125.75,23.75385118]
[1744580591722,129.57564797,125.86,125.79,8.00717854]
[1744580591723,0.0554576,125.82,125.79,8.00717854]
[1744580591929,0.0554576,125.82,125.79,0.05567854]
[1744580592124,0.0554576,125.82,125.77,23.75385118]
[1744580592320,0.0554576,125.82,125.81,7.9507]
[1744580592515,161.94350832,125.85,125.81,7.9507]
[1744580592721,108.1952418,125.83,125.81,7.9507]
[1744580593224,108.1952418,125.83,125.79,23.75385118]
[1744580593722,0.05508787,125.82,125.8,0.05734759]
[1744580595119,0.05508787,125.82,125.8,8.00864759]
[1744580595718,0.05508787,125.82,125.8,10.71244759]
[1744580599526,0.05508787,125.82,125.81,7.9507]
[1744580600933,0.05508787,125.82,125.8,10.71204759]
[1744580601127,0.05508787,125.82,125.8,2.76114759]
[1744580601627,0.05508787,125.82,125.81,7.9507]
[1744580601825,41.94,125.86,125.8,2.76114759]
[1744580602731,41.94,125.86,125.84,7.9482]
[1744580603030,41.99411895,125.86,125.84,7.9482]
[1744580603233,41.99411895,125.86,125.84,8.00210498]
[1744580605941,0.05411895,125.86,125.85,7.9481]
[1744580606541,7.9454,125.9,125.84,0.05390498]
[1744580606741,41.94,125.89,125.81,23.75385118]
[1744580607539,41.94,125.89,125.87,7.9464]
[1744580608041,41.99358647,125.89,125.87,7.99679307]
[1744580608842,41.99358647,125.89,125.88,7.9462]
[1744580609142,41.99358647,125.89,125.87,0.05039307]
[1744580609539,41.99358647,125.89,125.87,7.99689307]
[1744580611142,41.99358647,125.89,125.88,7.9462]
[1744580611748,41.99358647,125.89,125.87,7.99699307]
[1744580612745,0.05358647,125.89,125.88,7.9462]
[1744580613061,629.4,125.93,125.87,14.89236103]
[1744580613445,629.4,125.93,125.91,7.944]
[1744580614048,629.45918021,125.93,125.91,0.06080827]
[1744580614749,0.05918021,125.93,125.92,7.9437]
[1744580615254,360.0,126.09,125.92,7.94]
[1744580615548,55.64196796,126.09,125.96,14.84196796]
[1744580615850,7.9346,126.07,126.03,7.9362]
[1744580616052,14.84196796,126.07,125.95,14.84196796]
[1744580616251,362.8142,126.1,125.99,73.14252495]
[1744580616554,0.05661192,126.02,126.01,7.9379]
[1744580616751,40.8,126.04,125.99,73.14252495]
[1744580616952,0.05496219,126.03,126.02,7.9371]
[1744580617147,40.8,126.06,125.99,73.14252495]
[1744580617348,0.05226128,126.04,126.01,0.05569881]
[1744580617754,40.8,126.07,126.03,7.9363]
[1744580617949,40.8,126.09,126.01,0.05149471]
[1744580618146,40.78,126.12,126.07,7.9343]
[1744580618651,48.7114,126.12,126.07,7.9343]
[1744580618853,48.7114,126.12,126.01,2.899]
[1744580619254,0.04999344,126.08,126.05,0.05800342]
[1744580619554,0.04999344,126.08,126.07,7.9338]
[1744580620456,0.04999344,126.08,126.05,0.05800342]
[1744580620655,40.78,126.07,126.05,0.05800342]
[1744580621057,48.7146,126.07,126.05,0.05800342]
[1744580621359,40.78,126.07,126.05,0.05800342]
[1744580621558,7.9349,126.06,126.05,0.05800342]
[1744580623856,7.9361,126.05,126.0,7.9385]
[1744580624959,0.06000447,126.04,126.01,0.0520939]
[1744580626463,48.6968,126.03,126.01,0.0520939]
[1744580627863,7.9374,126.02,126.01,0.0520939]
[1744580630565,7.9384,126.01,125.98,7.9397]
[1744580631663,7.99049818,126.01,125.98,7.99727723]
[1744580632163,0.05209818,126.01,125.99,7.9393]
[1744580632566,7.99029818,126.01,125.98,7.99737723]
[1744580638470,0.05209818,126.01,125.99,7.9392]
[1744580643068,0.05209818,126.01,126.0,7.9387]
[1744580652968,0.05209818,126.01,125.98,0.05757723]
[1744580653976,7.9392,126.0,125.98,0.05757723]
[1744580654278,39.46,125.99,125.98,0.05757723]
[1744580654685,47.3993,125.99,125.98,0.05757723]
[1744580655682,39.46,125.99,125.98,0.05757723]
[1744580656183,39.46,125.99,125.98,7.99747723]
[1744580656982,7.99049818,126.01,125.98,7.99747723]
[1744580657284,0.05209818,126.01,125.99,7.9391]
[1744580657683,0.05209818,126.01,125.98,0.05757723]
[1744580657886,0.05209818,126.01,126.0,7.9387]
[1744580659082,628.78,126.05,125.99,20.4587185]
[1744580659389,47.3952,126.06,126.0,2.9557]
[1744580659891,39.46,126.06,126.0,2.9557]
[1744580660088,0.05812402,126.04,126.02,0.05157633]
[1744580661288,0.05812402,126.04,126.03,7.9368]
[1744580661488,39.46,126.06,126.02,0.05157633]
[1744580661783,7.9338,126.08,126.04,7.9356]
[1744580662087,7.9338,126.08,126.03,2.9557]
[1744580662294,7.9328,126.1,126.03,17.7704185]
[1744580662587,0.05385191,126.08,126.05,0.05979438]
[1744580662783,0.05385191,126.08,126.07,7.9343]
[1744580663083,0.05385191,126.08,126.05,0.05979438]
[1744580663084,38.08,126.14,126.06,17.5576185]
[1744580663890,46.0099,126.14,126.06,17.5576185]
[1744580664290,0.05283008,126.11,126.09,0.05988861]
[1744580665488,0.05283008,126.11,126.1,7.9324]
[1744580666991,38.08,126.14,126.12,7.9311]
[1744580667290,38.06,126.17,126.12,7.9311]
[1744580667585,7.9286,126.16,126.12,7.9311]
[1744580668190,0.04706659,126.15,126.13,0.0556654]
[1744580670091,7.96706659,126.15,126.13,0.00049746]
[1744580670487,7.96706659,126.15,126.07,2.886]
[1744580670788,23.2798185,126.16,126.07,2.886]
[1744580671089,7.9326,126.1,126.07,2.886]
[1744580671792,7.9336,126.08,126.07,0.05121055]
[1744580673592,45.9936,126.08,126.07,0.05121055]
[1744580684009,38.06,126.08,126.07,0.05121055]
[1744580684510,45.9936,126.08,126.07,0.05121055]
[1744580689814,45.9936,126.08,125.97,8.6397]
[1744580690018,7.937,126.03,125.97,8.6397]
[1744580690219,7.937,126.03,125.99,7.9388]
[1744580690719,7.9374,126.02,125.99,7.9388]
[1744580691014,0.05507353,126.02,125.99,7.99889235]
[1744580691420,0.05507353,126.02,125.99,0.06009235]
[1744580691821,7.9386,126.01,125.99,0.06009235]
[1744580692825,0.05507353,126.02,125.99,0.06009235]
[1744580693426,0.05507353,126.02,126.01,7.9381]
[1744580697630,0.05507353,126.02,126.0,7.9384]
[1744580698728,7.99257353,126.02,126.0,7.9384]
[1744580699325,0.05507353,126.02,126.0,7.9384]
[1744580700526,7.99247353,126.02,126.0,7.9384]
[1744580701130,0.05507353,126.02,126.0,7.9384]
[1744580701535,0.05507353,126.02,125.99,0.06009235]
[1744580702233,38.06,126.06,125.99,52.93481085]
[1744580703027,38.06,126.06,126.04,7.9358]
[1744580703433,38.11817021,126.06,126.04,7.98672221]
[1744580704632,38.11817021,126.06,126.05,7.9355]
[1744580705035,0.05817021,126.06,126.05,7.9355]
[1744580715138,15.8524,126.2,126.05,9.47270797]
[1744580715337,9.47270797,126.19,126.11,9.47270797]
[1744580715738,17.39980797,126.19,126.14,7.9294]
[1744580716138,9.47270797,126.17,126.06,3.5223]
[1744580716341,47.53270797,126.17,126.15,0.05761783]
[1744580716536,47.53270797,126.17,126.09,9.47270797]
[1744580716742,7.9286,126.16,126.15,0.06100245]
[1744580716938,47.53270797,126.17,126.11,7.9313]
[1744580717140,38.1006988,126.17,126.14,0.05656289]
[1744580718142,7.9293,126.15,126.14,0.05656289]
[1744580720243,7.9288,126.16,126.14,0.05656289]
[1744580720542,38.1006988,126.17,126.14,0.05656289]
[1744580721145,46.0290988,126.17,126.14,0.05656289]
[1744580721346,38.1006988,126.17,126.14,0.05656289]
[1744580721745,7.9286,126.16,126.14,0.05656289]
[1744580724245,46.0088988,126.17,126.14,7.98636289]
[1744580726345,46.0088988,126.17,126.14,0.05656289]
[1744580728950,46.0088988,126.17,126.14,7.98636289]
[1744580729548,38.0806988,126.17,126.14,7.98636289]
[1744580730549,38.0806988,126.17,126.15,7.9291]
[1744580730746,38.0806988,126.17,126.14,0.05656289]
[1744580730945,0.0406988,126.17,126.14,0.05656289]
[1744580731146,0.0406988,126.17,126.14,7.98606289]
[1744580732145,0.0406988,126.17,126.16,7.9286]
[1744580735247,7.9258,126.21,126.18,7.9271]
[1744580735549,7.9251,126.22,126.15,3.5907]
[1744580736051,7.9251,126.22,126.18,7.9269]
[1744580736247,7.9256,126.21,126.18,7.9269]
[1744580736443,7.9256,126.21,126.19,0.0589413]
[1744580738052,7.9252,126.22,126.19,0.0589413]
[1744580739851,7.9255,126.21,126.19,0.0589413]
[1744580740150,47.47322086,126.23,126.19,7.9855413]
[1744580740350,55.39772086,126.23,126.19,7.9855413]
[1744580740551,55.39772086,126.23,126.19,0.0589413]
[1744580740741,38.02,126.23,126.2,7.926]
[1744580741546,38.02,126.23,126.21,7.9253]
[1744580742042,47.47322086,126.26,126.21,7.9253]
[1744580742551,636.4433,126.25,126.22,0.05141646]
[1744580743255,7.9236,126.24,126.22,0.05141646]
[1744580744056,636.4431,126.25,126.22,0.05141646]
[1744580744557,7.9237,126.24,126.22,0.05141646]
[1744580749960,628.52,126.25,126.22,0.05141646]
[1744580751659,628.52,126.25,126.22,7.97591646]
[1744580751859,38.02,126.26,126.22,0.05141646]
[1744580752265,38.02,126.26,126.25,7.923]
[1744580752962,38.02,126.26,126.24,7.9233]
[1744580753563,47.41322086,126.29,126.25,7.9229]
[1744580754061,47.41322086,126.29,126.26,0.05155624]
[1744580754364,37.96,126.29,126.26,0.05155624]
[1744580755363,47.41322086,126.35,126.27,9.45322086]
[1744580755558,47.41322086,126.35,126.29,9.45322086]
[1744580755559,37.96,126.34,126.29,9.45322086]
[1744580755758,37.96,126.34,126.31,7.9186]
[1744580755957,9.45322086,126.35,126.3,0.05799168]
[1744580756159,37.96,126.37,126.3,0.05799168]
[1744580756358,45.8756,126.37,126.33,7.9174]
[1744580756754,45.8756,126.37,126.34,0.05999576]
[1744580757158,37.96,126.37,126.34,0.05999576]
[1744580758169,37.96,126.37,126.35,7.9161]
[1744580758966,37.96,126.37,126.36,7.9161]
[1744580759566,47.39322086,126.4,126.38,7.9148]
[1744580760066,37.94,126.4,126.38,0.05673521]
[1744580760467,37.94,126.4,126.39,7.9142]
[1744580761063,37.94,126.4,126.38,7.97133521]
[1744580763272,37.94,126.4,126.39,7.9142]
[1744580764668,37.94,126.43,126.38,0.05673521]
[1744580764868,37.94,126.43,126.39,9.45322086]
[1744580766274,37.92,126.46,126.39,9.45322086]
[1744580766671,37.92,126.52,126.43,9.45322086]
[1744580766869,9.45322086,126.51,126.45,9.45322086]
[1744580767173,37.92,126.52,126.48,7.908]
[1744580767381,37.92,126.52,126.43,22.03297758]
[1744580767564,37.92,126.52,126.49,0.0544793]
[1744580767875,37.92,126.52,126.49,0.05455697]
[1744580770077,37.92,126.52,126.49,7.96235697]
[1744580770272,37.92,126.52,126.49,0.05455697]
[1744580770479,45.8262,126.52,126.49,0.05455697]
[1744580770976,7.9067,126.51,126.49,0.05455697]
[1744580771176,37.92,126.52,126.49,0.05455697]
[1744580771781,45.8264,126.52,126.49,0.05455697]
[1744580772976,37.92,126.52,126.49,0.05455697]
[1744580773576,45.8264,126.52,126.49,0.05455697]
[1744580774875,14.70187758,126.51,126.49,0.05455697]
[1744580775066,18.27837758,126.51,126.41,3.6191]
[1744580775266,7.9104,126.46,126.37,22.22707758]
[1744580775468,37.9,126.45,126.37,11.2854]
[1744580775669,37.9,126.44,126.37,11.2854]
[1744580775871,37.9,126.44,126.37,15.4405]
[1744580776069,41.7154,126.44,126.37,7.9153]
[1744580776271,0.05455697,126.42,126.39,0.06071065]
[1744580776469,7.96725697,126.42,126.39,0.06071065]
[1744580777273,14.75643455,126.42,126.33,7.9179]
[1744580777480,14.70187758,126.4,126.27,37.9]
[1744580777783,37.9,126.39,126.28,14.70187758]
[1744580777981,37.9,126.39,126.3,14.70187758]
[1744580778374,7.9156,126.37,126.33,7.9175]
[1744580778674,0.05986559,126.36,126.33,7.97489226]
[1744580779184,0.05986559,126.36,126.33,0.05739226]
[1744580780486,0.05986559,126.36,126.35,7.9167]
[1744580786594,626.76,126.41,126.38,7.9144]
[1744580787688,0.05540203,126.41,126.38,0.05337654]
[1744580787886,37.88,126.48,126.38,22.67525412]
[1744580788091,37.88,126.47,126.39,45.2998]
[1744580788293,37.88,126.47,126.44,7.9105]
[1744580789088,37.88,126.47,126.44,7.96758322]
[1744580789288,37.88,126.47,126.45,7.9104]
[1744580790492,7.9082,126.49,126.45,7.9104]
[1744580790689,7.9082,126.49,126.44,7.96768322]
[1744580791494,7.9086,126.48,126.44,7.96768322]
[1744580792192,7.9082,126.49,126.45,7.9103]
[1744580792489,37.86,126.5,126.44,0.05708322]
[1744580792794,37.86,126.5,126.44,14.7589608]
[1744580793094,37.86,126.53,126.45,7.3329]
[1744580793295,45.7658,126.53,126.49,7.9076]
[1744580793492,37.86,126.53,126.49,7.9076]
[1744580793795,37.86,126.53,126.48,0.05126361]
[1744580794092,45.7659,126.53,126.49,7.9075]
[1744580794394,37.86,126.53,126.5,7.907]
[1744580795296,37.86,126.53,126.49,7.9076]
[1744580795594,37.86,126.53,126.48,0.05126361]
[1744580795986,45.7656,126.53,126.48,7.95946361]
[1744580796490,45.7656,126.53,126.49,7.9079]
[1744580796792,45.7656,126.53,126.48,0.05126361]
[1744580796993,45.7656,126.53,126.48,7.95966361]
[1744580799195,45.7656,126.53,126.49,7.9078]
[1744580799796,37.86,126.53,126.5,7.9072]
[1744580800798,37.86,126.53,126.51,7.9065]
[1744580801099,37.84,126.56,126.51,7.9065]
[1744580801395,37.84,126.56,126.51,7.95968389]
[1744580801797,7.9045,126.55,126.51,7.95968389]
[1744580802794,37.84,126.56,126.51,7.95968389]
[1744580802999,45.7438,126.56,126.52,7.9059]
[1744580804398,37.84,126.56,126.52,7.9059]
[1744580805204,45.744,126.56,126.52,7.9059]
[1744580805505,45.744,126.56,126.51,7.95958389]
[1744580807006,45.744,126.56,126.52,7.9058]
[1744580807398,45.744,126.56,126.51,0.05318389]
[1744580807605,45.744,126.56,126.51,7.95938389]
[1744580808608,7.9043,126.55,126.51,7.95938389]
[1744580808903,37.84,126.56,126.51,0.05318389]
[1744580809104,14.70187758,126.55,126.51,0.05318389]
[1744580810007,25.67567758,126.55,126.51,0.05318389]
[1744580810703,7.9061,126.52,126.51,0.05318389]
[1744580811002,45.7461,126.52,126.51,0.05318389]
[1744580814902,7.9084,126.49,126.45,11.0663]
[1744580815107,37.84,126.52,126.45,7.3207]
[1744580815401,37.84,126.52,126.45,15.2308]
[1744580815604,37.84,126.52,126.45,7.3207]
[1744580815812,37.84,126.52,126.45,3.5873]
[1744580816113,0.05318389,126.5,126.47,0.05364492]
[1744580816413,7.9079,126.49,126.47,0.05364492]
[1744580816706,37.82,126.48,126.47,0.05364492]
[1744580817714,45.7286,126.48,126.47,0.05364492]
[1744580822512,37.82,126.48,126.47,0.05364492]
[1744580823116,37.82,126.48,126.47,7.96284492]
[1744580823418,0.05318389,126.5,126.47,0.05364492]
[1744580823612,0.05318389,126.5,126.47,7.96254492]
[1744580823813,0.05318389,126.5,126.47,0.05364492]
[1744580824618,0.05318389,126.5,126.47,7.96254492]
[1744580825126,0.05318389,126.5,126.47,0.05364492]
[1744580825327,0.05318389,126.5,126.48,7.9081]
[1744580828228,0.05318389,126.5,126.47,7.96244492]
[1744580828926,0.05318389,126.5,126.48,7.9085]
[1744580829329,0.05318389,126.5,126.47,0.05364492]
[1744580829625,0.05318389,126.5,126.49,7.9079]
[1744580832527,37.82,126.56,126.49,7.9]
[1744580832731,37.82,126.56,126.48,21.99977758]